Cogmind - Beta 16.1 @@@ ROGUE MODE // 2026.02.13 @ 20:27:56 Player: %41THX3142 Result: Destroyed by G-47 Trooper with Particle Gun Performance ------------- Evolutions (0) 0 Regions Visited (1) 200 Robots Destroyed (12) 60 Value Destroyed (297) 297 Prototype IDs (0) 0 Alien Tech Used (0) 0 Bonus (0) 0 TOTAL SCORE: 557 Bonus ------- None Cogmind --------- Core Integrity 0/250 Matter 278/300 Energy 250/250 System Corruption 0% Temperature Cool (9) Movement Walking (120) Location -10/Materials Parts ------- > --- POWER (1) -------- Ion Engine > --- PROPULSION (2) --- Aluminum Leg Aluminum Leg > --- UTILITY (2) ------ Small Storage Unit > --- WEAPON (2) ------- Assault Rifle > --- INVENTORY (8) ---- Light Ion Engine Light Ion Engine Aluminum Leg Flight Unit Heat Sink Medium Laser Small Laser Small Laser Peak State ------------ > --- POWER ------------ Ion Engine > --- PROPULSION ------- Aluminum Leg Aluminum Leg > --- UTILITY ---------- Small Storage Unit Seismic Detector > --- WEAPON ----------- Medium Laser Small Laser > --- INVENTORY -------- Light Ion Engine Light Ion Engine Assault Rifle [Rating: 7] Favorites ----------- Power Ion Engine Engine Ion Engine Propulsion Aluminum Leg Leg Aluminum Leg Utility Small Storage Unit Device Seismic Detector Storage Small Storage Unit Weapon Medium Laser Energy Gun Medium Laser Ballistic Gun Assault Rifle Build | -11 -10 ------- Run | Yrd Mat Slots Evolved . | . . Power . | . . Propulsion . | . . Utility . | . . Weapon . | . . Parts Attached 12 | 8 4 Power 2 | 1 1 Engine 2 | 1 1 Core . | . . Reactor . | . . Propulsion 4 | 2 2 Treads . | . . Leg 4 | 2 2 Wheel . | . . Hover . | . . Flight . | . . Utility 2 | 2 . Device 1 | 1 . Storage 1 | 1 . Processor . | . . Hackware . | . . Protection . | . . Artifact . | . . Weapon 4 | 3 1 Energy Gun 3 | 2 1 Energy Cannon . | . . Ballistic Gun 1 | 1 . Ballistic Cannon . | . . Launcher . | . . Special Weapon . | . . Impact Weapon . | . . Slashing Weapon . | . . Piercing Weapon . | . . Special Melee Weapon . | . . Unidentified Prototypes . | . . Parts Lost 3 | . 3 Power 1 | . 1 Propulsion 1 | . 1 Utility 1 | . 1 Weapon . | . . Highest Loss Streak 3 | . 3 To Critical Strikes . | . . Average Backups 4 | 1 6 Power 2 | 1 2 Propulsion 1 | . 1 Utility . | . . Weapon 1 | . 1 Tool/Special . | . . Unused Backups 5 | . 5 Power 2 | . 2 Propulsion 2 | . 2 Utility 1 | . 1 Weapon . | . . Tool/Special . | . . Average Slot Usage (%) 88 | . 88 Engine 11 | . 11 Leg 25 | . 25 Device 9 | . 9 Storage 14 | . 14 Energy Gun 22 | . 22 Ballistic Gun 4 | . 4 Peak Build Rating 7 | 7 7 Average Rating 5 | 5 6 On Entrance 3 | . 7 Avg Prop Armor Cover (%) . | . . Naked Turns . | . . Heaviest Build 14 | 14 14 Greatest Support 20 | 20 20 Greatest Overweight (x) 1 | 1 . Average Overweight (x) . | . . Largest Inventory Capacity 8 | 8 8 Average Capacity 7 | 7 8 Most Carried 8 | 3 8 Average Carried 4 | 2 6 Final Capacity 8 | 8 8 Final Carried 8 | 3 8 Class Distribution -------------------- 100% | Mutant Dominant Class ---------------- Mutant | -10/Materials Resources | -11 -10 ----------- Run | Yrd Mat Matter Collected 371 | 264 107 Remotely . | . . Salvage Created 480 | 114 366 Parts 18 | 7 11 Haulers Intercepted . | . . Recyclers Shooed . | . . Parts Field Recycled . | . . Retrieved Matter . | . . Parts Self-Destructed . | . . Prevented . | . . Parts Restored . | . . Kills | -11 -10 ------- Run | Yrd Mat Combat Hostiles Destroyed 7 | . 7 Guns 7 | . 7 Classes Destroyed 3 | 2 1 Tunneler 3 | 3 . Recycler 2 | 1 1 Grunt 7 | . 7 Best Kill Streak 3 | 2 3 Combat Bots Only 3 | . 3 Max Kills in Single Turn 1 | 1 1 Gunslinging . | . . Exploded . | . . Melee . | . . Uniques/NPCs Destroyed . | . . Combat | -11 -10 -------- Run | Yrd Mat Hostile Shots Fired 77 | . 77 Missed 21 | . 21 Hits 56 | . 56 Projectile 56 | . 56 Damage Taken 785 | . 785 Core 260 | . 260 Absorbed by Shields . | . . Core Remaining (%) 100 | 100 . Volleys Fired 55 | 8 47 Largest 2 | 2 2 Hottest 90 | 90 90 Shots Fired 98 | 16 82 Gun 98 | 16 82 Cannon . | . . Launcher . | . . Special . | . . Kinetic 28 | . 28 Thermal 70 | 16 54 Explosive . | . . Electromagnetic . | . . Robot Hit Streak 16 | 7 16 Robot Miss Streak 3 | 1 3 Penetration Max . | . . Secondary Targets 1 | . 1 Max Gunslinging Chain 1 | . 1 Shots Hit Robots 64 | 10 54 Core Hits 24 | 6 18 Critical Kills . | . . Critical Parts Destroyed . | . . Critical Strikes 2 | 1 1 Burn 2 | 1 1 Melee Attacks . | . . Impact . | . . Slashing . | . . Piercing . | . . Sneak Attacks . | . . Combat Hostiles . | . . Follow-up Attacks . | . . Damage Inflicted 811 | 128 683 Guns 797 | 120 677 Cannons . | . . Explosions . | . . Melee . | . . Ramming 14 | 8 6 Kinetic 241 | . 241 Thermal 556 | 120 436 Explosive . | . . Electromagnetic . | . . Impact . | . . Slashing . | . . Piercing . | . . Highest Corruption . | . . Average Corruption . | . . Corruption Purged . | . . Corruption Blocked . | . . Overload Shots . | . . Overflow Damage . | . . Projectiles . | . . Explosions . | . . Melee . | . . Knockbacks . | . . Impact . | . . Kinetic . | . . Secondary . | . . Self-Inflicted Damage . | . . Shots . | . . Rammed . | . . Targets Rammed 9 | 4 5 Kicked 9 | 4 5 Crushed . | . . Highest Temperature 267 | 120 267 Average Temperature 128 | 43 148 Received Heat Transfer 450 | . 450 Effects 6 | . 6 Energy Bleed 2 | . 2 Interference 4 | . 4 Siege Activations . | . . Martial Activations . | . . Shielding Activations . | . . Robots Disrupted . | . . Combat Hostiles . | . . Robots Corrupted . | . . Combat Hostiles . | . . Parts Fried . | . . Impact Corruptions . | . . Robots Melted . | . . Combat Hostiles . | . . Parts Melted 3 | 2 1 Heat Transferred 1695 | 396 1299 Parts Sabotaged . | . . Parts Stolen . | . . Parts Stripped . | . . Power Chain Reactions . | . . Alert | -11 -10 ------- Run | Yrd Mat Maximum Alert Level . | . . Low Security (%) 100 | 100 100 Level 1 . | . . Level 2 . | . . Level 3 . | . . Level 4 . | . . Level 5 . | . . High Security . | . . Max Security . | . . Peak Influence 85 | 5 85 Initial . | . . Average 15 | 1 21 Influence Increases 210 | 20 190 Destroy 0b10 Robot/C 140 | . 140 Destroy 0b10 Robot/NC 25 | 20 5 Destroy Leader 30 | . 30 Lose Combat Pursuer 15 | . 15 Influence Decreases 150 | 20 130 Time Decay 140 | 20 120 Lost Part 10 | . 10 Squads Dispatched 2 | . 2 Investigation 1 | . 1 Extermination . | . . Reinforcement 1 | . 1 Assault . | . . Garrison . | . . Intercept . | . . Searches Triggered . | . . Construction Impeded . | . . Haulers Reinforced . | . . Active Scanning Responses . | . . Cargo Convoy Interrupts . | . . Stealth | -11 -10 --------- Run | Yrd Mat Distress Signals 2 | . 2 Communications Jammed . | . . Distress Signals . | . . Times Spotted 13 | . 13 Peak Tracking Total 6 | . 6 Tactical Retreats 1 | . 1 Traps | -11 -10 ------- Run | Yrd Mat Traps Triggered 1 | . 1 Indirectly . | . . Trap Hack Attempts . | . . Triggered . | . . Disarmed . | . . Reprogrammed . | . . Reused . | . . Traps Extracted . | . . Installed . | . . Triggered . | . . Machines | -11 -10 ---------- Run | Yrd Mat Machines Disabled . | . . Max in Single Turn . | . . Machines Repaired . | . . Machines Dismantled . | . . Machines Sabotaged . | . . Overloaded Fab Kills . | . . Hacking | -11 -10 --------- Run | Yrd Mat Machines Accessed 1 | . 1 Terminals 1 | . 1 Fabricators . | . . Repair Stations . | . . Recycling Units . | . . Scanalyzers . | . . Garrison Access . | . . Total Hacks 2 | . 2 Successful 1 | . 1 Failed 1 | . 1 Catastrophic . | . . Database Lockouts . | . . Manual 2 | . 2 Terminals 2 | . 2 Fabricators . | . . Repair Stations . | . . Recycling Units . | . . Scanalyzers . | . . Garrison Access . | . . Terminal Hacks . | . . Fabricator Hacks . | . . Repair Station Hacks . | . . Recycling Unit Hacks . | . . Scanalyzer . | . . Garrison Access Hacks . | . . Unauthorized Hacks 1 | . 1 Terminals 1 | . 1 Botnet 1 | . 1 Fabricators . | . . Repair Stations . | . . Recycling Units . | . . Scanalyzers . | . . Garrison Access . | . . Data Cores Recovered . | . . Used . | . . Hacking Detections 1 | . 1 Full Trace Events . | . . Feedback Events . | . . Feedback Blocked . | . . Robot Schematics Acquired . | . . Robots Built . | . . Authchips . | . . Time . | . . Total Robot Build Rating . | . . Part Schematics Acquired . | . . Parts Built . | . . Authchips . | . . Time . | . . Total Part Build Rating . | . . Part Studies Acquired . | . . Parts Repaired . | . . Time . | . . Parts Recycled . | . . Recycled Matter . | . . Retrieved Matter . | . . Retrieved Components . | . . Parts Scanalyzed . | . . Part Schematics Acquired . | . . Parts Damaged . | . . Bothacking | -11 -10 ------------ Run | Yrd Mat Used RIF Installer . | . . Robots Hacked . | . . Non-combat . | . . Combat . | . . Robot Hacks Applied . | . . Relay Couplers Released . | . . Fabnet Peak Effective % . | . . Robots Rewired . | . . Allies Hacked . | . . Hacks Repelled . | . . Allies | -11 -10 -------- Run | Yrd Mat Total Allies . | . . Largest Group . | . . Highest-Rated Group . | . . Highest-Rated Ally . | . . Total Orders . | . . Ally Attacks . | . . Total Damage . | . . Kills . | . . Allies Corrupted . | . . Allies Melted . | . . Intel | -11 -10 ------- Run | Yrd Mat Active Infowar (turns) 264 | 17 247 Seismic 264 | 17 247 Robot Analysis Total . | . . Derelict Logs Recovered . | . . Drone Launches . | . . Drone Recoveries . | . . Exploration | -11 -10 ------------- Run | Yrd Mat Turns Passed 546 | 171 375 Spaces Moved 251 | 103 148 Core 6 | 6 . Treads . | . . Legs 245 | 97 148 Wheels . | . . Hover . | . . Flight . | . . Fastest Speed 50 | 50 120 Average Speed 120 | 121 120 Slowest Speed 190 | 190 120 Overloaded Moves . | . . Propulsion Burnouts . | . . Robots Hopped . | . . Potential Cave-ins . | . . Cave-ins Triggered . | . . Exploration Rate (%) 12 | 4 21 Regions Visited 1 Branch Regions . Pre-discovered Areas . | . . Known Exits Taken . | . . Unknown Exits Taken 1 | 1 . Scrap Searched . | . . Spaces Dug . | . . Terrain Destroyed . | . . Melee . | . . Projectile . | . . AOE . | . . Terrain Rammed . | . . Walls Destroyed . | . . Machines Disabled . | . . Actions | -11 -10 --------- Run | Yrd Mat Total 389 | 126 263 Wait 51 | . 51 Move 250 | 102 148 Hop . | . . Pick Up 9 | 4 5 Fast Attach 6 | 6 . Attach 3 | 1 2 Detach 1 | . 1 Swap 4 | 1 3 Drop 1 | . 1 Fire 55 | 8 47 Melee . | . . Ram . | . . Kick 9 | 4 5 Crush . | . . Escape Stasis . | . . Rewire . | . . Trap . | . . Miscellaneous . | . . Route ------- -11/Scrapyard -10/Materials History --------- Turn | Location | Event 28 | -11/Scrapyard | Discovered new exit (range 15) 172 | -11/Scrapyard | Entered Materials 309 | -10/Materials | Build established: Mutant 446 | -10/Materials | Core integrity fell below 50% 458 | -10/Materials | Core integrity fell below 20% 470 | -10/Materials | Lost 3 parts (1p1n1u) 547 | -10/Materials | Destroyed by G-47 Trooper with Particle Gun Last Messages --------------- 00434_ Sml. Laser temporarily disabled. 00435_ Ion Engine destroyed. 00437_ G-47 Trooper overheating. 00439_ Aluminum Leg destroyed. 00440_ G-47 Trooper destroyed. 00472_ G-47 Trooper heat short circuits Aluminum Leg. 00473_ G-47 Trooper overheating. 00476_ G-47 Trooper destroyed. 00479_ G-34 Mercenary destroyed. 00489_ K-01 Serf collects debris. 00493_ Overheating: Energy bleed (-23). 00494_ Overheating: System interference. 00494_ Med. Laser temporarily disabled. 00495_ Overheating: Energy bleed (-8). 00496_ Acquired 41 matter. 00501_ R-06 Scavenger collects Heat Sink. 00504_ R-06 Scavenger collects Aluminum Leg. 00517_ R-06 Scavenger destroyed. 00536_ Dropped Aluminum Leg. 00541_ Acquired 66 matter. Map ----- +----------------------------------------------------+ | ???????????????????????????????????????????????? | | ???????????????????????????????????????????????? | | ???????????????????????????????????????????????? | | ???????????????????????????????????????????????? | | ???????????????????????????????????????????????? | | ???????????????????????????????????????????????? | | ???????????????????????????????????????????????? | | ???????????????????????????????????????????????? | | ???????????????????????????????????????????????? | | ???????????????????????? ????? ???????????? | | ?????????????????????? k ???? ???????????? | | ????????????????????# ??? ???????????? | | ????????????????????# "???" #??????????? | | ????????????????????# """"" #??????????? | | ????????????????????# """"" #??????????? | | ????????????????????# """ #??????????? | | ??????????????????? # #??????????? | | ??????????????????? + #??????????? | | ????????????????????# t #??????????? | | ????????????????????? #??????????? | | ??????????????????????# +??????????? | | ??????????????????????# "" #??????????? | | ??????????############# T" #??????????? | | ????????? "" #??????????? | | ????????? g !! #??????????? | | ????????? g !@= #??????????? | | ??????????????##########=##"T"### ###########? | | ??????????????????######+######## # # | | ??????????????????# %%% # # # | | ??????????????????#! # # "" """??? | | ??????????????????# """ """ + !+ """ """??? | | ??????????????????# """" """" # %#%""" """??? | | ??????????????????# " "" # # ?? | | ??????????????????# %%%% # # ! ?? | | ??????????????????############### ##########?? | | ????????????????????????????????# # T #???? | | ????????????????????????????????# # #???? | | ????????????????????????????????# # """ #???? | | ????????????????????????????????# # """ #???? | | ????????????????????????????????# # """ #???? | | ????????????????????????????????# + #???? | | ????????????????????????????????# ########???? | | ????????????????????????????????# # #???? | | ????????????????????????????????# # #???? | | ????????????????????????????????# # """ #???? | | ????????????????????????????????# + """ #???? | | ????????????????????????????????# # """ #???? | | ????????????????????????????????# # #???? | | ????????????????????????????????# ########???? | | ????????????????????????????????# #??????????? | +----------------------------------------------------+ Best States ------------- Heat Dissipation 25 Energy Generation 10 Energy Capacity 250 Matter Stores 300 Matter Capacity 300 Sight Range 16 Terrain Scan Density 10 Evasion (%) 55 Item Schematics ----------------- None Robot Schematics ------------------ None Fabricated ------------ Nothing Repaired ---------- Nothing Studied --------- None Alien Tech Used ----------------- None Achievements -------------- None Challenges ------------ None Game ------ Seed TerrainExplosiveMultitool Manual? 0 Play Time 00:07:53 Cumulative 64.0 hours Start 2026.02.13 @ 20:22:42 End 2026.02.13 @ 20:27:56 Sessions 1 Manual Loads 0 Difficulty Rogue Special Mode None Game No. 55 Rogue 55 Adventurer 0 Explorer 0 Win Type - Total 0 Types 0/0/0/0/0/0/0/0/0/0 Lore% 25 Gallery% 29 Achievement% 24 Wizard Run 0 Options --------- Layout 0 ASCII 0 Keyboard 1 Movement Vi Keybinds 0 Fullscreen 1 Font 18/SmallcapsGlow Map View 76x50 Zoom Use 0% Tactical HUD 1 Map Filters NONE Filters NONE Steam 1 RUN: 797db8e7-7f92-4db1-9f9e-8cf478d804b4